fUSD/lending_fUSD_20251024
["ID","MTS","AMOUNT","RATE_DAILY","PERIOD"]
[392248092,1761276698090,-500.0,0.00042465,30]
[392248093,1761276698100,-519.26,0.00042465,30]
[392248094,1761276698110,-673.74,0.00042465,30]
[392248095,1761276698124,-783.9,0.00042465,30]
[392248096,1761276698133,-500.0,0.00042465,30]
[392248097,1761276698143,-816.99,0.00042465,30]
[392248098,1761276698152,-500.0,0.00042465,30]
[392248099,1761276698163,-500.0,0.00042465,30]
[392248100,1761276698172,-812.07,0.00042465,30]
[392248101,1761276698181,-773.52,0.00042465,30]
[392248102,1761276698190,-500.0,0.00042465,30]
[392248103,1761276698201,-500.0,0.00042465,30]
[392248104,1761276698211,-500.0,0.00042465,30]
[392248105,1761276698220,-1089.69,0.00042465,30]
[392248106,1761276698231,-500.0,0.00042465,30]
[392248107,1761276698240,-1063.04,0.00042465,30]
[392248108,1761276698251,-500.0,0.00042465,30]
[392248109,1761276698261,-500.0,0.00042465,30]
[392248110,1761276698271,-293.94593556,0.00042465,30]
[392248111,1761276698280,-623.88,0.00042465,30]
[392248112,1761276698290,-500.0,0.00042465,30]
[392248113,1761276698300,-500.0,0.00042465,30]
[392248114,1761276698309,-504.72206644,0.00042465,30]
[392248115,1761276698318,-500.0,0.00042465,30]
[392248116,1761276698327,-536.84,0.00042465,30]
[392248117,1761276698337,-503.23237759,0.00042465,30]
[392248118,1761276698346,-644.89033334,0.00042465,30]
[392248119,1761276698355,-656.17,0.00042465,30]
[392248120,1761276698364,-500.0,0.00042465,30]
[392248121,1761276698373,-500.0,0.00042465,30]
[392248122,1761276698383,-668.42,0.00042465,30]
[392248123,1761276698393,-500.0,0.00042465,30]
[392248124,1761276698403,-661.4,0.00042465,30]
[392248125,1761276698413,-708.15,0.00042465,30]
[392248126,1761276698423,-802.48,0.00042465,30]
[392248127,1761276698433,-500.0,0.00042465,30]
[392248128,1761276698443,-516.08,0.00042465,30]
[392248129,1761276698453,-500.0,0.00042465,30]
[392248130,1761276698463,-213.41870646,0.00042465,30]
[392248131,1761276698475,-823.14,0.00042465,30]
[392248132,1761276698485,-500.0,0.00042465,30]
[392248133,1761276698495,-500.0,0.00042465,30]
[392248134,1761276698504,-742.53,0.00042465,30]
[392248135,1761276698514,-500.0,0.00042465,30]
[392248136,1761276698523,-500.0,0.00042465,30]
[392248137,1761276698533,-849.18,0.00042465,30]
[392248138,1761276698542,-500.0,0.00042465,30]
[392248139,1761276698552,-500.0,0.00042465,30]
[392248140,1761276698562,-500.0,0.00042465,30]
[392248141,1761276698572,-500.0,0.00042465,30]
[392248142,1761276698583,-500.0,0.00042465,30]
[392248143,1761276698592,-566.09,0.00042465,30]
[392248144,1761276698602,-500.0,0.00042465,30]
[392248145,1761276698611,-500.0,0.00042465,30]
[392248146,1761276698620,-863.39,0.00042465,30]
[392248147,1761276698629,-681.53,0.00042465,30]
[392248148,1761276698639,-500.0,0.00042465,30]
[392248149,1761276698649,-500.0,0.00042465,30]
[392248150,1761276698659,-500.0,0.00042465,30]
[392248151,1761276698670,-792.61,0.00042465,30]
[392248152,1761276698679,-500.0,0.00042465,30]
[392248153,1761276698689,-500.0,0.00042465,30]
[392248154,1761276698699,-500.0,0.00042465,30]
[392248155,1761276698708,-172.731463,0.00042465,30]
[392248156,1761276698717,-808.63,0.00042465,30]
[392248157,1761276698731,-618.95,0.00042465,30]
[392248158,1761276698740,-500.0,0.00042465,30]
[392248159,1761276698750,-500.0,0.00042465,30]
[392248160,1761276698762,-500.0,0.00042465,30]
[392248161,1761276698772,-500.0,0.00042465,30]
[392248162,1761276698782,-500.0,0.00042465,30]
[392248163,1761276698792,-759.92,0.00042465,30]
[392248164,1761276698805,-500.0,0.00042465,30]
[392248165,1761276698817,-1172.09,0.00042465,30]
[392248166,1761276698826,-500.0,0.00042465,30]
[392248167,1761276698835,-500.0,0.00042465,30]
[392248168,1761276698845,-647.94,0.00042465,30]
[392248169,1761276698854,-557.35,0.00042465,30]
[392248170,1761276698864,-840.94,0.00042465,30]
[392248171,1761276698874,-500.0,0.00042465,30]
[392248172,1761276698883,-760.03,0.00042465,30]
[392248173,1761276698893,-500.0,0.00042465,30]
[392248174,1761276698903,-500.0,0.00042465,30]
[392248175,1761276698914,-500.0,0.00042465,30]
[392248176,1761276698924,-573.08,0.00042465,30]
[392248177,1761276698934,-404.99443792,0.00042465,30]
[392248178,1761276698943,-500.0,0.00042465,30]
[392248179,1761276698954,-786.3,0.00042465,30]
[392248180,1761276698964,-500.0,0.00042465,30]
[392248181,1761276698974,-283.72898858,0.00042465,30]
[392248182,1761276698983,-500.0,0.00042465,30]
[392248183,1761276698993,-500.0,0.00042465,30]
[392248184,1761276699003,-970.16,0.00042465,30]
[392248185,1761276699013,-500.0,0.00042465,30]
[392248186,1761276699023,-387.23720348,0.00042465,30]
[392248187,1761276699032,-500.0,0.00042465,30]
[392248188,1761276699043,-544.22,0.00042465,30]
[392248189,1761276699052,-679.01,0.00042465,30]
[392248190,1761276699062,-500.0,0.00042465,30]
[392248191,1761276699071,-500.0,0.00042465,30]
[392248192,1761276699081,-796.73,0.00042465,30]
[392248193,1761276699091,-500.0,0.00042465,30]
[392248194,1761276699101,-500.0,0.00042465,30]
[392248195,1761276699110,-500.0,0.00042465,30]
[392248196,1761276699123,-500.0,0.00042465,30]
[392248197,1761276699133,-500.0,0.00042465,30]
[392248198,1761276699143,-539.42,0.00042465,30]
[392248199,1761276699152,-512.09,0.00042465,30]
[392248200,1761276699163,-500.0,0.00042465,30]
[392248201,1761276699172,-500.0,0.00042465,30]
[392248202,1761276699182,-1087.85,0.00042465,30]
[392248203,1761276699193,-500.0,0.00042465,30]
[392248204,1761276699203,-500.0,0.00042465,30]
[392248205,1761276699213,-500.0,0.00042465,30]
[392248206,1761276699222,-500.0,0.00042465,30]
[392248207,1761276699232,-500.0,0.00042465,30]
[392248208,1761276699241,-602.69,0.00042465,30]
[392248209,1761276699250,-500.0,0.00042465,30]
[392248210,1761276699260,-635.17,0.00042465,30]
[392248211,1761276699270,-500.0,0.00042465,30]
[392248212,1761276699279,-654.87,0.00042465,30]
[392248213,1761276699289,-500.0,0.00042465,30]
[392248214,1761276699298,-805.42,0.00042465,30]
[392248215,1761276699308,-823.67,0.00042465,30]
[392248216,1761276699318,-382.10943388,0.00042465,30]
[392248217,1761276699327,-508.76,0.00042465,30]
[392248218,1761276699337,-586.2,0.00042466,120]
[392248219,1761276699347,-1000.0,0.00042484,14]
[392248220,1761276699355,-677.9,0.00042491,2]
[392248221,1761276699364,-152.66406086,0.000425,14]
[392248222,1761276699373,-150.0,0.00042512,14]
[392248223,1761276699382,-152.0,0.00042515,14]
[392248224,1761276699391,-152.0,0.00042515,14]
[392248225,1761276699400,-233.29865209,0.00042515,14]
[392248226,1761276699409,-1350.26527478,0.00042515,14]
[392248227,1761276699419,-400.52469909,0.00042515,14]
[392248228,1761276699428,-155.58326804,0.00042515,14]
[392248229,1761276699437,-167.0,0.00042515,14]
[392248230,1761276699446,-167.47348598,0.00042515,14]
[392248231,1761276699455,-5000.0,0.00042526,2]
[392248232,1761276699465,-864.42,0.00042536,2]
[392248233,1761276699474,-24442.26,0.00042537,2]
[392248234,1761276699483,-1425.0,0.00042539,2]
[392248235,1761276699492,-1000.0,0.00042553,14]
[392248236,1761276699502,-150.0,0.00042558,14]
[392248237,1761276699511,-5000.0,0.00042562,2]
[392248238,1761276699521,-311.0,0.000426,30]
[392248239,1761276699530,-302.0,0.000426,30]
[392248240,1761276699540,-58676.35804,0.00042608,2]
[392248241,1761276699549,-1036.29642025,0.00042614,14]
[392248242,1761276699558,-150.0,0.00042629,14]
[392248243,1761276699568,-150.0,0.00042632,14]
[392248244,1761276699577,-150.0,0.00042653,14]
[392248245,1761276699586,-313.84,0.00042654,2]
[392248246,1761276699597,-397.78548468,0.00042667,8]
[392248247,1761276699607,-1000.0,0.00042668,14]
[392248248,1761276699616,-165.11464299,0.00042677,15]
[392248249,1761276699625,-150.0,0.00042704,14]
[392248250,1761276699636,-5000.0,0.00042718,2]
[392248251,1761276699646,-1000.0,0.00042721,10]
[392248252,1761276699656,-460.76731596,0.00042721,2]
[392248253,1761276699664,-939.66899732,0.00042721,10]
[392248254,1761276699673,-150.0,0.00042721,14]
[392248255,1761276699683,-1000.0,0.00042734,14]
[392248256,1761276699693,-1000.0,0.00042735,14]
[392248257,1761276699703,-500.0,0.00042737,30]
[392248258,1761276699712,-500.0,0.00042738,30]
[392248259,1761276699721,-500.0,0.00042738,30]
[392248260,1761276699730,-759.05,0.00042738,30]
[392248261,1761276699740,-702.45,0.00042738,30]
[392248262,1761276699752,-500.0,0.00042738,30]
[392248263,1761276699762,-503.56,0.00042738,30]
[392248264,1761276699772,-500.0,0.00042738,30]
[392248265,1761276699783,-500.0,0.00042738,30]
[392248266,1761276699792,-500.0,0.00042738,30]
[392248267,1761276699803,-500.0,0.00042738,30]
[392248268,1761276699812,-619.76,0.00042738,30]
[392248269,1761276699824,-500.0,0.00042738,30]
[392248270,1761276699833,-500.0,0.00042738,30]
[392248271,1761276699842,-500.0,0.00042738,30]
[392248272,1761276699852,-500.0,0.00042738,30]
[392248273,1761276699862,-500.0,0.00042738,30]
[392248274,1761276699874,-500.0,0.00042738,30]
[392248275,1761276699884,-500.0,0.00042738,30]
[392248276,1761276699895,-515.9,0.00042738,30]
[392248277,1761276699904,-500.0,0.00042738,30]
[392248278,1761276699913,-500.0,0.00042738,30]
[392248279,1761276699923,-500.0,0.00042738,30]
[392248280,1761276699934,-500.0,0.00042738,30]
[392248281,1761276699943,-807.29,0.00042738,30]
[392248282,1761276699953,-500.0,0.00042738,30]
[392248283,1761276699962,-500.0,0.00042738,30]
[392248284,1761276699972,-534.59,0.00042738,30]
[392248285,1761276699982,-598.35,0.00042738,30]
[392248286,1761276699991,-612.17,0.00042738,30]
[392248287,1761276700001,-500.0,0.00042738,30]
[392248288,1761276700011,-500.0,0.00042738,30]
[392248289,1761276700020,-500.0,0.00042738,30]
[392248290,1761276700030,-500.0,0.00042738,30]
[392248291,1761276700039,-1228.65,0.00042738,30]
[392248292,1761276700049,-500.0,0.00042738,30]
[392248293,1761276700058,-500.0,0.00042738,30]
[392248294,1761276700067,-500.0,0.00042738,30]
[392248295,1761276700077,-500.0,0.00042738,30]
[392248296,1761276700088,-500.0,0.00042738,30]
[392248297,1761276700097,-283.88545544,0.00042738,30]
[392248298,1761276700107,-500.0,0.00042738,30]
[392248299,1761276700119,-506.94,0.00042738,30]
[392248300,1761276700130,-500.0,0.00042738,30]
[392248301,1761276700140,-500.0,0.00042738,30]
[392248302,1761276700149,-500.0,0.00042738,30]
[392248303,1761276700158,-500.0,0.00042738,30]
[392248304,1761276700169,-500.0,0.00042738,30]
[392248305,1761276700178,-500.0,0.00042738,30]
[392248306,1761276700187,-554.20261053,0.00042738,30]
[392248307,1761276700197,-500.0,0.00042738,30]
[392248308,1761276700207,-500.0,0.00042738,30]
[392248309,1761276700215,-546.12225777,0.00042738,30]
[392248310,1761276700224,-500.0,0.00042738,30]
[392248311,1761276700233,-702.82,0.00042738,30]
[392248312,1761276700242,-712.07,0.00042738,30]
[392248313,1761276700251,-522.13,0.00042738,30]
[392248314,1761276700260,-957.86,0.00042738,30]
[392248315,1761276700269,-500.0,0.00042738,30]
[392248316,1761276700278,-500.0,0.00042738,30]
[392248317,1761276700287,-500.0,0.00042738,30]
[392248318,1761276700296,-816.98,0.00042738,30]
[392248319,1761276700305,-500.0,0.00042738,30]
[392248320,1761276700315,-500.0,0.00042738,30]
[392248321,1761276700325,-878.78,0.00042738,30]
[392248322,1761276700336,-629.56,0.00042738,30]
[392248323,1761276700346,-778.71,0.00042738,30]
[392248324,1761276700357,-500.0,0.00042738,30]
[392248325,1761276700367,-500.0,0.00042738,30]
[392248326,1761276700378,-500.0,0.00042738,30]
[392248327,1761276700387,-516.49,0.00042738,30]
[392248328,1761276700397,-500.0,0.00042738,30]
[392248329,1761276700406,-500.0,0.00042738,30]
[392248330,1761276700416,-500.0,0.00042738,30]
[392248331,1761276700425,-500.0,0.00042738,30]
[392248332,1761276700434,-500.0,0.00042738,30]
[392248333,1761276700443,-500.0,0.00042738,30]
[392248334,1761276700452,-500.0,0.00042738,30]
[392248335,1761276700462,-514.35,0.00042738,30]
[392248336,1761276700472,-500.0,0.00042738,30]
[392248337,1761276700481,-500.0,0.00042738,30]
[392248338,1761276700490,-500.0,0.00042738,30]
[392248339,1761276700499,-500.0,0.00042738,30]
[392248340,1761276700508,-500.0,0.00042738,30]
[392248341,1761276700518,-500.0,0.00042738,30]
[392248342,1761276700528,-500.0,0.00042738,30]
[392248343,1761276700537,-500.0,0.00042738,30]
[392248344,1761276700549,-500.0,0.00042738,30]
[392248345,1761276700559,-500.0,0.00042738,30]
[392248346,1761276700569,-500.0,0.00042738,30]
[392248347,1761276700580,-543.3,0.00042738,30]
[392248348,1761276700590,-559.34,0.00042738,30]
[392248349,1761276700600,-500.0,0.00042738,30]
[392248350,1761276700611,-500.0,0.00042738,30]
[392248351,1761276700621,-500.0,0.00042738,30]
[392248352,1761276700630,-1022.15,0.00042738,30]
[392248353,1761276700639,-500.0,0.00042738,30]
[392248354,1761276700648,-782.57,0.00042738,30]
[392248355,1761276700657,-570.31,0.00042738,30]
[392248356,1761276700666,-885.28,0.00042738,30]
[392248357,1761276700674,-500.0,0.00042738,30]
[392248358,1761276700683,-738.42,0.00042738,30]
[392248359,1761276700693,-500.0,0.00042738,30]
[392248360,1761276700703,-827.8,0.00042738,30]
[392248361,1761276700714,-747.36,0.00042738,30]
[392248362,1761276700723,-500.0,0.00042738,30]
[392248363,1761276700733,-931.74,0.00042738,30]
[392248364,1761276700743,-500.0,0.00042738,30]
[392248365,1761276700753,-568.4,0.00042738,30]
[392248366,1761276700763,-855.01,0.00042738,30]
[392248367,1761276700772,-500.0,0.00042738,30]
[392248368,1761276700782,-500.0,0.00042738,30]
[392248369,1761276700793,-500.0,0.00042738,30]
[392248370,1761276700805,-500.0,0.00042738,30]
[392248371,1761276700814,-500.0,0.00042738,30]
[392248372,1761276700823,-500.0,0.00042738,30]
[392248373,1761276700834,-531.3,0.00042738,30]
[392248374,1761276700843,-500.0,0.00042738,30]
[392248375,1761276700853,-546.17,0.00042738,30]
[392248376,1761276700862,-500.0,0.00042738,30]
[392248377,1761276700871,-500.0,0.00042738,30]
[392248378,1761276700880,-1079.09,0.00042738,30]
[392248379,1761276700889,-500.0,0.00042738,30]
[392248380,1761276700898,-500.0,0.00042738,30]
[392248381,1761276700907,-500.0,0.00042738,30]
[392248382,1761276700917,-500.0,0.00042738,30]
[392248383,1761276700927,-500.0,0.00042738,30]
[392248384,1761276700936,-500.0,0.00042738,30]
[392248385,1761276700945,-774.66,0.00042738,30]
[392248386,1761276700955,-648.38,0.00042738,30]
[392248387,1761276700964,-500.0,0.00042738,30]
[392248388,1761276700973,-500.5,0.00042738,30]
[392248389,1761276700983,-790.24,0.00042738,30]
[392248390,1761276700992,-500.0,0.00042738,30]
[392248391,1761276701002,-1293.66,0.00042738,30]
[392248392,1761276701012,-500.0,0.00042738,30]
[392248393,1761276701022,-500.0,0.00042738,30]
[392248394,1761276701032,-1216.42,0.00042738,30]
[392248395,1761276701041,-500.0,0.00042738,30]
[392248396,1761276701051,-500.0,0.00042738,30]
[392248397,1761276701060,-500.0,0.00042738,30]
[392248398,1761276701070,-766.29,0.00042738,30]
[392248399,1761276701080,-605.84,0.00042738,30]
[392248400,1761276701089,-500.0,0.00042738,30]
[392248401,1761276701099,-584.16,0.00042738,30]
[392248402,1761276701109,-754.49,0.00042738,30]
[392248403,1761276701121,-500.0,0.00042738,30]
[392248404,1761276701131,-835.0,0.00042738,30]
[392248405,1761276701141,-500.0,0.00042738,30]
[392248406,1761276701150,-500.0,0.00042738,30]
[392248407,1761276701161,-500.0,0.00042738,30]
[392248408,1761276701170,-500.0,0.00042738,30]
[392248409,1761276701179,-500.0,0.00042738,30]
[392248410,1761276701189,-968.87,0.00042738,30]
[392248411,1761276701199,-584.43,0.00042738,30]
[392248412,1761276701209,-765.02,0.00042738,30]
[392248413,1761276701335,-818.09,0.00042738,30]
[392248414,1761276701344,-500.0,0.00042738,30]
[392248415,1761276701354,-500.0,0.00042738,30]
[392248416,1761276701363,-700.27,0.00042738,30]
[392248417,1761276701372,-500.0,0.00042738,30]
[392248418,1761276701381,-567.3,0.00042738,30]
[392248419,1761276701390,-500.0,0.00042738,30]
[392248420,1761276701399,-500.0,0.00042738,30]
[392248421,1761276701409,-500.0,0.00042738,30]
[392248422,1761276701419,-549.34,0.00042738,30]
[392248423,1761276701428,-500.0,0.00042738,30]
[392248424,1761276701439,-500.0,0.00042738,30]
[392248425,1761276701449,-708.53,0.00042738,30]
[392248426,1761276701460,-500.0,0.00042738,30]
[392248427,1761276701471,-500.0,0.00042738,30]
[392248428,1761276701481,-868.81,0.00042738,30]
[392248429,1761276701493,-390.2388782,0.00042738,30]
[392248430,1761276701503,-500.0,0.00042738,30]
[392248431,1761276701513,-841.79,0.00042738,30]
[392248432,1761276701523,-500.0,0.00042738,30]
[392248433,1761276701533,-685.09,0.00042738,30]
[392248434,1761276701543,-500.0,0.00042738,30]
[392248435,1761276701552,-500.0,0.00042738,30]
[392248436,1761276701562,-518.17,0.00042738,30]
[392248437,1761276701571,-582.97,0.00042738,30]
[392248438,1761276701580,-500.0,0.00042738,30]
[392248439,1761276701589,-500.0,0.00042738,30]
[392248440,1761276701599,-500.0,0.00042738,30]
[392248441,1761276701608,-500.0,0.00042738,30]
[392248442,1761276701617,-500.0,0.00042738,30]
[392248443,1761276701626,-500.0,0.00042738,30]
[392248444,1761276701636,-767.33,0.00042738,30]
[392248445,1761276701645,-461.15132301,0.00042738,30]
[392248446,1761276701655,-576.3,0.00042738,30]
[392248447,1761276701665,-500.0,0.00042738,30]
[392248448,1761276701675,-547.29,0.00042738,30]
[392248449,1761276701685,-500.0,0.00042738,30]
[392248450,1761276701694,-563.88,0.00042738,30]
[392248451,1761276701703,-500.0,0.00042738,30]
[392248452,1761276701715,-536.57,0.00042738,30]
[392248453,1761276701724,-500.0,0.00042738,30]
[392248454,1761276701735,-500.0,0.00042738,30]
[392248455,1761276701748,-500.0,0.00042738,30]
[392248456,1761276701759,-500.0,0.00042738,30]
[392248457,1761276701768,-500.0,0.00042738,30]
[392248458,1761276701777,-500.0,0.00042738,30]
[392248459,1761276701787,-500.0,0.00042738,30]
[392248460,1761276701796,-500.0,0.00042738,30]
[392248461,1761276701806,-500.0,0.00042738,30]
[392248462,1761276701816,-207.81809532,0.00042738,30]
[392248463,1761276701826,-500.0,0.00042738,30]
[392248464,1761276701836,-500.0,0.00042738,30]
[392248465,1761276701846,-500.0,0.00042738,30]
[392248466,1761276701856,-716.69,0.00042738,30]
[392248467,1761276701865,-500.0,0.00042738,30]
[392248468,1761276701875,-582.83,0.00042738,30]
[392248469,1761276701885,-172.1966329,0.00042738,30]
[392248470,1761276701894,-500.0,0.00042738,30]
[392248471,1761276701904,-720.59,0.00042738,30]
[392248472,1761276701914,-500.0,0.00042738,30]
[392248473,1761276701924,-500.0,0.00042738,30]
[392248474,1761276701934,-502.35,0.00042738,30]
[392248475,1761276701944,-500.0,0.00042738,30]
[392248476,1761276701954,-500.0,0.00042738,30]
[392248477,1761276701964,-500.0,0.00042738,30]
[392248478,1761276701973,-500.0,0.00042738,30]
[392248479,1761276701984,-500.0,0.00042738,30]
[392248480,1761276701994,-500.0,0.00042738,30]
[392248481,1761276702004,-500.0,0.00042738,30]
[392248482,1761276702014,-853.32,0.00042738,30]
[392248483,1761276702024,-500.25,0.00042738,30]
[392248484,1761276702034,-500.0,0.00042738,30]
[392248485,1761276702044,-770.35,0.00042738,30]
[392248486,1761276702054,-759.31,0.00042738,30]
[392248487,1761276702064,-864.42,0.00042738,2]
[392248488,1761276702074,-692.51,0.00042738,30]
[392248489,1761276702087,-925.13,0.00042738,30]
[392248490,1761276702097,-569.1,0.00042738,30]
[392248491,1761276702107,-500.0,0.00042738,2]
[392248492,1761276702119,-760.48,0.00042738,30]
[392248493,1761276702129,-500.0,0.00042738,30]
[392248494,1761276702139,-500.0,0.00042738,30]
[392248495,1761276702149,-691.31,0.00042738,30]
[392248496,1761276702159,-500.0,0.00042738,2]
[392248497,1761276702169,-500.0,0.00042738,30]
[392248498,1761276702179,-983.51,0.00042738,30]
[392248499,1761276702190,-500.0,0.00042738,30]
[392248500,1761276702201,-500.0,0.00042738,30]
[392248501,1761276702211,-590.79,0.00042738,30]
[392248502,1761276702221,-980.07,0.00042738,30]
[392248503,1761276702230,-500.0,0.00042738,30]
[392248504,1761276702241,-500.0,0.00042738,30]
[392248505,1761276702251,-500.0,0.00042738,30]
[392248506,1761276702262,-500.0,0.00042738,30]
[392248507,1761276702272,-817.32,0.00042738,30]
[392248508,1761276702283,-500.0,0.00042738,30]
[392248509,1761276702292,-373.77221172,0.00042738,30]
[392248510,1761276702304,-500.0,0.00042738,10]
[392248511,1761276702314,-802.82,0.00042738,30]
[392248512,1761276702324,-500.0,0.00042738,30]
[392248513,1761276702333,-500.0,0.00042738,30]
[392248514,1761276702343,-644.8,0.00042738,30]
[392248515,1761276702353,-500.0,0.00042738,30]
[392248516,1761276702363,-500.0,0.00042738,30]
[392248517,1761276702373,-500.0,0.00042738,30]
[392248518,1761276702383,-896.35,0.00042738,30]
[392248519,1761276702393,-500.0,0.00042738,30]
[392248520,1761276702403,-743.01,0.00042738,30]
[392248521,1761276702414,-500.0,0.00042738,30]
[392248522,1761276702424,-500.0,0.00042738,30]
[392248523,1761276702434,-540.45,0.00042738,30]
[392248524,1761276702443,-500.0,0.00042738,30]
[392248525,1761276702453,-500.0,0.00042738,30]
[392248526,1761276702462,-956.91,0.00042738,30]
[392248527,1761276702472,-500.0,0.00042738,30]
[392248528,1761276702481,-500.0,0.00042738,30]
[392248529,1761276702491,-500.0,0.00042738,30]
[392248530,1761276702501,-500.0,0.00042738,30]
[392248531,1761276702511,-523.02,0.00042738,30]
[392248532,1761276702521,-625.96,0.00042738,30]
[392248533,1761276702534,-652.85,0.00042738,30]
[392248534,1761276702544,-571.6,0.00042738,30]
[392248535,1761276702554,-934.98,0.00042738,30]
[392248536,1761276702565,-500.0,0.00042738,30]
[392248537,1761276702576,-500.0,0.00042738,30]
[392248538,1761276702588,-506.71,0.00042738,30]
[392248539,1761276702599,-500.0,0.00042738,30]
[392248540,1761276702609,-706.23,0.00042738,30]
[392248541,1761276702619,-500.0,0.00042738,30]
[392248542,1761276702628,-500.0,0.00042738,30]
[392248543,1761276702638,-712.5,0.00042738,30]
[392248544,1761276702647,-500.0,0.00042738,30]
[392248545,1761276702657,-500.0,0.00042738,30]
[392248546,1761276702669,-241.77613838,0.00042738,30]
[392248547,1761276702678,-500.0,0.00042738,30]
[392248548,1761276702688,-698.44,0.00042738,30]
[392248549,1761276702699,-500.0,0.00042738,30]
[392248550,1761276702710,-500.0,0.00042739,30]
[392248551,1761276702719,-500.0,0.00042739,30]
[392248552,1761276702729,-500.0,0.00042739,30]
[392248553,1761276702740,-500.0,0.00042739,30]
[392248554,1761276702750,-500.0,0.00042739,30]
[392248555,1761276702759,-500.0,0.00042739,30]
[392248556,1761276702770,-600.0,0.00042739,30]
[392248557,1761276702782,-500.0,0.00042739,30]
[392248558,1761276702792,-500.0,0.00042739,2]
[392248559,1761276702803,-313.12538213,0.00042739,30]
[392248560,1761276702812,-500.0,0.00042739,30]
[392248561,1761276702823,-500.0,0.00042739,30]
[392248562,1761276702833,-631.88,0.00042739,30]
[392248563,1761276702843,-526.37125035,0.00042739,30]
[392248564,1761276702856,-203.19964351,0.00042739,30]
[392248565,1761276702867,-500.0,0.00042739,30]
[392248566,1761276702878,-500.0,0.00042739,30]
[392248567,1761276702887,-500.0,0.00042739,30]
[392248568,1761276702896,-500.0,0.00042739,30]
[392248569,1761276702906,-500.0,0.00042739,30]
[392248570,1761276702916,-500.0,0.00042739,30]
[392248571,1761276702926,-500.0,0.00042739,30]
[392248572,1761276702937,-500.0,0.00042739,30]
[392248573,1761276702948,-582.23814006,0.00042739,30]
[392248574,1761276702958,-500.0,0.00042739,30]
[392248575,1761276702969,-500.0,0.00042739,30]
[392248576,1761276702979,-500.0,0.00042739,30]
[392248577,1761276702989,-500.0,0.00042739,30]
[392248578,1761276702998,-500.0,0.00042739,2]
[392248579,1761276703008,-500.0,0.00042739,30]
[392248580,1761276703018,-500.0,0.00042739,30]
[392248581,1761276703027,-662.02,0.00042739,30]
[392248582,1761276703036,-550.71,0.00042739,30]
[392248583,1761276703046,-500.0,0.00042739,30]
[392248584,1761276703056,-500.0,0.00042739,30]
[392248585,1761276703067,-500.0,0.00042739,30]
[392248586,1761276703077,-469.32075979,0.00042739,30]
[392248587,1761276703086,-500.0,0.00042739,30]
[392248588,1761276703096,-752.97,0.00042739,30]
[392248589,1761276703105,-562.37,0.00042739,30]
[392248590,1761276703116,-500.0,0.00042739,30]
[392248591,1761276703128,-692.99,0.00042739,30]